[Event "XIX Najdorf Memorial 2019"]
[Site "Warsaw"]
[Date "2019.07.08"]
[Round "3.16"]
[White "Oglaza, Oskar"]
[Black "Lukasiewicz, Krzysztof"]
[Result "1-0"]
[ECO "D35"]
[WhiteElo "2345"]
[BlackElo "2172"]
[Annotator "NA"]
[PlyCount "89"]
[EventDate "2019.07.06"]
[EventType "swiss"]
[EventCountry "POL"]
[SourceTitle "playchess.com"]
[Source "ChessBase"]
[SourceQuality "1"]
[TimeControl "40/5400+30:1800+30"]

1. d4 {[%emt 0:00:00]} d5 {[%emt 0:00:00]} 2. c4 {[%emt 0:00:00]} e6 {[%emt 0:00:00]} 3. Nc3 {[%emt 0:00:00]} Nf6 {[%emt 0:00:00]} 4. cxd5 {[%emt 0:00:00]} exd5 {[%emt 0:00:00]} 5. Bg5 {[%emt 0:00:00]} c6 {[%emt 0:00:00]} 6. e3 {[%emt 0:00:01]} Be7 {[%emt 0:00:04]} 7. Bd3 {[%emt 0:00:28]} Nbd7 {[%emt 0:00:06]} 8. Qc2 {[%emt 0:00:06]} Nh5 {[%emt 0:00:06]} 9. Bxe7 {[%emt 0:00:05]} Qxe7 {[%emt 0:00:03]} 10. O-O-O {[%emt 0:00:11]} g6 {[%emt 0:00:20]} 11. h3 {[%emt 0:01:28]} Nb6 {[%emt 0:00:29]} 12. Kb1 {[%emt 0:00:06]} Ng7 {[%emt 0:00:32]} 13. g4 {[%emt 0:00:04]} Be6 {[%emt 0:00:12]} 14. Nf3 {[%emt 0:00:09]} O-O-O {[%emt 0:00:05]} 15. Na4 {[%emt 0:00:27]} Nxa4 {[%emt 0:00:05]} 16. Qxa4 {[%emt 0:00:03]} Kb8 {[%emt 0:00:04]} 17. Rc1 {[%emt 0:00:52]} Ne8 {[%emt 0:00:19]} 18. Rc3 {[%emt 0:10:09]} Nd6 {[%emt 0:00:20]} 19. Rhc1 {[%emt 0:07:10]} Nc4 {[%emt 0:02:34]} 20. Ne5 {[%emt 0:30:29]} Nxe5 {[%emt 0:03:39]} 21. dxe5 {[%emt 0:01:28]} d4 {[%emt 0:00:30]} 22. Ra3 {[%emt 0:05:32]} a6 {[%emt 0:00:57]} 23. exd4 {[%emt 0:00:11]} Qd7 {[%emt 0:01:24]} 24. Bxa6 {[%emt 0:05:13]} bxa6 {[%emt 0:02:01]} 25. Rxc6 {[%emt 0:00:04]} Qxd4 {[%emt 0:02:03]} 26. Rb3+ {[%emt 0:00:19]} Bxb3 {[%emt 0:04:17]} 27. Qxb3+ {[%emt 0:00:48]} Ka8 {[%emt 0:00:16]} 28. Rxa6+ {[%emt 0:00:05]} Qa7 {[%emt 0:00:02]} 29. Rxa7+ {[%emt 0:00:06]} Kxa7 {[%emt 0:00:03]} 30. Qxf7+ {[%emt 0:00:05]} Kb6 {[%emt 0:02:56]} 31. e6 {[%emt 0:00:26]} Rhf8 {[%emt 0:08:03]} 32. Qe7 {[%emt 0:00:09]} Rfe8 {[%emt 0:00:56]} 33. Qf7 {[%emt 0:02:05]} Rf8 {[%emt 0:03:52]} 34. Qxh7 {[%emt 0:00:03]} Rxf2 {[%emt 0:00:10]} 35. a3 {[%emt 0:00:01]} Rdd2 {[%emt 0:06:53]} 36. Qg7 {[%emt 0:01:38]} Kc6 {[%emt 0:06:35]} 37. h4 {[%emt 0:00:53]} Kd6 {[%emt 0:03:40]} 38. Qd7+ {[%emt 0:00:07]} Kc5 {[%emt 0:00:04]} 39. Qc7+ {[%emt 0:00:28]} Kd5 {[%emt 0:00:42]} 40. e7 {[%emt 0:00:00]} Rxb2+ {[%emt 0:00:00]} 41. Kc1 {[%emt 0:01:54]} Ra2 {[%emt 0:08:30]} 42. Qd7+ {[%emt 0:00:06]} Kc4 {[%emt 0:00:11]} 43. Qe6+ {[%emt 0:00:07]} Kc3 {[%emt 0:00:16]} 44. Qe3+ {[%emt 0:00:02]} Kc4 {[%emt 0:00:09]} 45. Qxf2 {[%emt 0:00:03]} 1-0

[Event "XIX Najdorf Memorial 2019"]
[Site "Warsaw"]
[Date "2019.07.08"]
[Round "3.17"]
[White "Kubicka, Anna"]
[Black "Jacobsen, Mikkel Manosri"]
[Result "1-0"]
[ECO "B12"]
[WhiteElo "2202"]
[BlackElo "2343"]
[Annotator "NA"]
[PlyCount "73"]
[EventDate "2019.07.06"]
[EventType "swiss"]
[EventCountry "POL"]
[SourceTitle "playchess.com"]
[Source "ChessBase"]
[SourceQuality "1"]
[TimeControl "40/5400+30:1800+30"]

1. e4 {[%emt 0:08:13]} c6 {[%emt 0:00:00]} 2. d4 {[%emt 0:00:21]} d5 {[%emt 0:00:00]} 3. e5 {[%emt 0:00:16]} Bf5 {[%emt 0:00:00]} 4. Nf3 {[%emt 0:00:35]} e6 {[%emt 0:00:07]} 5. Be2 {[%emt 0:00:08]} Ne7 {[%emt 0:00:04]} 6. O-O {[%emt 0:00:08]} Nd7 {[%emt 0:00:02]} 7. Nbd2 {[%emt 0:00:14]} h6 {[%emt 0:00:05]} 8. c3 {[%emt 0:00:05]} g5 {[%emt 0:00:06]} 9. b4 {[%emt 0:00:13]} Qc7 {[%emt 0:01:43]} 10. Nb3 {[%emt 0:00:21]} Bg7 {[%emt 0:01:55]} 11. Ne1 {[%emt 0:00:26]} O-O-O {[%emt 0:05:35]} 12. Nd3 {[%emt 0:01:22]} f6 {[%emt 0:23:37]} 13. f4 {[%emt 0:02:34]} Rdf8 {[%emt 0:03:04]} 14. Nbc5 {[%emt 0:04:02]} Nxc5 {[%emt 0:14:48]} 15. Nxc5 {[%emt 0:01:04]} b6 {[%emt 0:05:54]} 16. Na6 {[%emt 0:16:57]} Qd7 {[%emt 0:00:05]} 17. b5 {[%emt 0:01:01]} gxf4 {[%emt 0:01:21]} 18. exf6 {[%emt 0:02:49]} Bxf6 {[%emt 0:00:16]} 19. Bxf4 {[%emt 0:01:08]} Bg5 {[%emt 0:00:54]} 20. bxc6 {[%emt 0:04:19]} Nxc6 {[%emt 0:03:25]} 21. Bg3 {[%emt 0:05:00]} Na5 {[%emt 0:00:33]} 22. Nb8 {[%emt 0:05:42]} Qe8 {[%emt 0:03:29]} 23. Ba6+ {[%emt 0:07:02]} Kd8 {[%emt 0:01:33]} 24. Qe2 {[%emt 0:00:14]} Be4 {[%emt 0:05:53]} 25. Bb5 {[%emt 0:08:32]} Qe7 {[%emt 0:03:24]} 26. Bd7 {[%emt 0:05:42]} Qa3 {[%emt 0:05:31]} 27. Bxe6 {[%emt 0:04:12]} Qxc3 {[%emt 0:02:26]} 28. Qb5 {[%emt 0:02:48]} Qxd4+ {[%emt 0:00:56]} 29. Bf2 {[%emt 0:04:13]} Qg7 {[%emt 0:00:14]} 30. Rad1 {[%emt 0:02:31]} Qc7 {[%emt 0:09:48]} 31. Rxd5+ {[%emt 0:01:05]} Bxd5 {[%emt 0:00:07]} 32. Qxd5+ {[%emt 0:00:03]} Ke7 {[%emt 0:00:23]} 33. Bg4 {[%emt 0:05:09]} Rf4 {[%emt 0:06:42]} 34. Re1+ {[%emt 0:02:14]} Kf6 {[%emt 0:01:24]} 35. Nd7+ {[%emt 0:01:35]} Kg6 {[%emt 0:00:17]} 36. Qd3+ {[%emt 0:02:18]} Kf7 {[%emt 0:00:59]} 37. Bh5+ {[%emt 0:00:14]} 1-0

[Event "XIX Najdorf Memorial 2019"]
[Site "Warsaw"]
[Date "2019.07.08"]
[Round "3.18"]
[White "Fus, Jakub"]
[Black "Rakshitta Ravi"]
[Result "1/2-1/2"]
[ECO "C50"]
[WhiteElo "2341"]
[BlackElo "2112"]
[Annotator "NA"]
[PlyCount "95"]
[EventDate "2019.07.06"]
[EventType "swiss"]
[EventCountry "POL"]
[SourceTitle "playchess.com"]
[Source "ChessBase"]
[SourceQuality "1"]
[TimeControl "40/5400+30:1800+30"]

1. e4 e5 2. Nf3 Nc6 3. Bc4 Bc5 4. O-O d6 5. c3 Nf6 6. d3 h6 7. a4 a6 8. Nbd2 Ba7 9. Re1 Ng4 10. Re2 Ne7 11. Nf1 Ng6 12. h3 Nf6 13. Ng3 O-O 14. Re1 Be6 15. Bxe6 fxe6 16. d4 Qe7 17. dxe5 dxe5 18. Be3 Bxe3 19. Rxe3 Nd7 20. Qb3 b6 21. Qc4 Kh7 22. b4 c5 23. b5 a5 24. Qf1 Rf6 25. Rd1 Nf4 26. Ne2 c4 27. Nxf4 exf4 28. Ree1 Rc8 29. e5 Rf5 30. Rd4 Rc5 31. Rxc4 Nxe5 32. Nxe5 Rcxe5 33. Rxe5 Rxe5 34. Qd3+ Kg8 35. Rxf4 Re1+ 36. Kh2 Qc7 37. Qg3 e5 38. Rf6 Kh8 39. Rc6 Qd8 40. Qg4 Qd3 41. Qe6 Kh7 42. Rc8 Rf1 43. Qg8+ Kg6 44. Rc6+ Kh5 45. Qe8+ Kh4 46. g3+ Kg5 47. Qxe5+ Qf5 48. Qxg7+ 1/2-1/2

[Event "XIX Najdorf Memorial 2019"]
[Site "Warsaw"]
[Date "2019.07.08"]
[Round "3.19"]
[White "Paszewski, Mateusz"]
[Black "Wisniewski, Michal"]
[Result "1/2-1/2"]
[ECO "B91"]
[WhiteElo "2324"]
[BlackElo "2103"]
[Annotator "NA"]
[PlyCount "271"]
[EventDate "2019.07.06"]
[EventType "swiss"]
[EventCountry "POL"]
[SourceTitle "playchess.com"]
[Source "ChessBase"]
[SourceQuality "1"]
[TimeControl "40/5400+30:1800+30"]

1. e4 c5 2. Nf3 d6 3. d4 cxd4 4. Nxd4 Nf6 5. Nc3 a6 6. Be3 Ng4 7. Bc1 Nf6 8. g3 e5 9. Nb3 b5 10. a4 b4 11. Nd5 Nxd5 12. Qxd5 Ra7 13. Be3 Be6 14. Qd2 Rb7 15. Bg2 Be7 16. a5 O-O 17. O-O Qc7 18. f4 Rc8 19. f5 Bc4 20. Rf2 Nd7 21. Qd1 Rb5 22. h4 Nf6 23. Bb6 Qc6 24. Nd2 b3 25. cxb3 Bd3 26. Qf3 Qc2 27. Nf1 Bxe4 28. Rxc2 Rxc2 29. Qxe4 Nxe4 30. Bxe4 Rxb2 31. Bd3 R5xb3 32. Bxa6 d5 33. Bb7 Rxb6 34. axb6 d4 35. Bd5 Rxb6 36. Ra8+ Bf8 37. Ra7 Rf6 38. Be4 g6 39. g4 gxf5 40. gxf5 Rd6 41. Bd3 e4 42. Bxe4 d3 43. Bf3 d2 44. Ra1 Bh6 45. Kf2 Rd4 46. h5 Kg7 47. Ng3 Bf4 48. Ne4 Rc4 49. Rg1+ Kf8 50. Ke2 Rc2 51. Rd1 Ke7 52. Bg4 Ra2 53. Rf1 Bh6 54. Rb1 Ra4 55. Bf3 Rd4 56. Rd1 Rd5 57. Nxd2 Rxf5 58. Nf1 Re5+ 59. Kf2 Bg5 60. Rd4 f5 61. Ra4 h6 62. Kg2 Rc5 63. Ng3 Kf6 64. Ra8 Bf4 65. Rf8+ Kg5 66. Rg8+ Kh4 67. Ne2 Be3 68. Rg6 Ra5 69. Rg8 Ra2 70. Rg7 Ra5 71. Ng3 Bf4 72. Nxf5+ Rxf5 73. Rg4+ Kxh5 74. Rg8+ Kh4 75. Rg4+ Kh5 76. Rxf4+ Kg5 77. Rg4+ Kf6 78. Ra4 Kg5 79. Kg3 h5 80. Ra8 h4+ 81. Kg2 Kf4 82. Ra4+ Ke3 83. Re4+ Kd3 84. Rxh4 Rg5+ 85. Kf2 Re5 86. Rh6 Re7 87. Rd6+ Kc4 88. Bg4 Kc5 89. Rd1 Re8 90. Kf3 Rf8+ 91. Ke4 Re8+ 92. Kf5 Rf8+ 93. Ke5 Kb4 94. Rc1 Rd8 95. Be6 Rd2 96. Bd5 Re2+ 97. Kd6 Rd2 98. Rc4+ Kb5 99. Rc1 Kb4 100. Kc6 Rh2 101. Rb1+ Kc3 102. Kc5 Rh4 103. Rb3+ Kd2 104. Rg3 Ke2 105. Bb7 Kf2 106. Rb3 Ke2 107. Kd5 Kd2 108. Ke5 Kc2 109. Rg3 Rb4 110. Be4+ Kd2 111. Rd3+ Ke2 112. Kf4 Rb8 113. Rc3 Rb2 114. Re3+ Kd2 115. Rd3+ Ke2 116. Rd4 Rb3 117. Rd8 Rb6 118. Bf3+ Ke1 119. Rd1+ Kf2 120. Rd2+ Ke1 121. Re2+ Kf1 122. Ra2 Ke1 123. Bd5 Rb8 124. Ke3 Kd1 125. Be4 Rb3+ 126. Bd3 Kc1 127. Rh2 Rc3 128. Rg2 Rc7 129. Rf2 Rc3 130. Kd4 Ra3 131. Rh2 Kd1 132. Rb2 Kc1 133. Rc2+ Kd1 134. Ke3 Rb3 135. Rh2 Kc1 136. Ra2 1/2-1/2

[Event "XIX Najdorf Memorial 2019"]
[Site "Warsaw"]
[Date "2019.07.08"]
[Round "3.20"]
[White "Popiol, Michal"]
[Black "Kowalski, Igor"]
[Result "0-1"]
[ECO "E98"]
[WhiteElo "2187"]
[BlackElo "2320"]
[Annotator "NA"]
[PlyCount "80"]
[EventDate "2019.07.06"]
[EventType "swiss"]
[EventCountry "POL"]
[SourceTitle "playchess.com"]
[Source "ChessBase"]
[SourceQuality "1"]
[TimeControl "40/5400+30:1800+30"]

1. d4 Nf6 2. c4 g6 3. Nc3 Bg7 4. e4 d6 5. Nf3 O-O 6. Be2 e5 7. O-O Nc6 8. d5 Ne7 9. Ne1 Nd7 10. Be3 f5 11. f3 f4 12. Bf2 g5 13. a4 a5 14. Nd3 b6 15. b4 axb4 16. Nxb4 Nf6 17. a5 bxa5 18. Nd3 h5 19. h3 Rf7 20. c5 Bh6 21. Rb1 g4 22. hxg4 hxg4 23. fxg4 Rg7 24. cxd6 cxd6 25. Bb6 Qe8 26. Nf2 Qg6 27. Nb5 Ne8 28. Ra1 Rh7 29. Rxa5 Rxa5 30. Bxa5 f3 31. Bxf3 Be3 32. Re1 Qh6 33. Kf1 Ng6 34. Qb3 Bxf2 35. Kxf2 Qh4+ 36. Ke3 Nf4 37. Rc1 Nxg2+ 38. Kd2 Qf2+ 39. Be2 Bxg4 40. Nc3 Qe3+ 0-1

[Event "XIX Najdorf Memorial 2019"]
[Site "Warsaw"]
[Date "2019.07.08"]
[Round "3.21"]
[White "Shkliar, Boris"]
[Black "Hassan, Abdullah"]
[Result "0-1"]
[ECO "C10"]
[WhiteElo "2160"]
[BlackElo "2311"]
[Annotator "NA"]
[PlyCount "118"]
[EventDate "2019.07.06"]
[EventType "swiss"]
[EventCountry "POL"]
[SourceTitle "playchess.com"]
[Source "ChessBase"]
[SourceQuality "1"]
[TimeControl "40/5400+30:1800+30"]

1. e4 e6 2. d4 d5 3. Nc3 Nc6 4. Nf3 Nf6 5. e5 Ne4 6. Ne2 f6 7. Ng3 f5 8. Bb5 Be7 9. Ne2 O-O 10. c4 a6 11. Ba4 Bb4+ 12. Kf1 dxc4 13. Bxc6 bxc6 14. Qa4 c5 15. a3 Bd7 16. Qc2 cxd4 17. Nfxd4 Be7 18. Nc3 c5 19. Nde2 Bc6 20. f3 Nxc3 21. Qxc3 Qd1+ 22. Qe1 Qd3 23. h4 Rab8 24. Kf2 Rfd8 25. Bg5 Bxg5 26. hxg5 Rxb2 27. Rd1 Qxd1 28. Qxd1 Rxd1 29. Rxd1 c3 30. Ke3 c2 31. Rc1 Rb3+ 32. Kd2 Rxa3 33. Rxc2 Ra5 34. Nf4 Bd5 35. Nxd5 exd5 36. f4 Kf7 37. Rb2 Rb5 38. Ra2 a5 39. Kc3 Ke6 40. g3 g6 41. Ra1 Rb4 42. Rxa5 d4+ 43. Kc2 Kd5 44. Ra7 Rc4+ 45. Kd2 Rc3 46. Rd7+ Kc4 47. Rxh7 Rxg3 48. e6 Re3 49. e7 Re4 50. Rg7 d3 51. Rxg6 Re2+ 52. Kd1 Rxe7 53. Rc6 Re4 54. Ra6 Kd4 55. Rd6+ Kc3 56. Rd5 c4 57. Rxf5 d2 58. Re5 Rxe5 59. fxe5 Kd3 0-1

[Event "XIX Najdorf Memorial 2019"]
[Site "Warsaw"]
[Date "2019.07.08"]
[Round "3.22"]
[White "Punin, Andrii"]
[Black "Pettersson, Alexander"]
[Result "1-0"]
[ECO "B17"]
[WhiteElo "2305"]
[BlackElo "2083"]
[Annotator "NA"]
[PlyCount "59"]
[EventDate "2019.07.06"]
[EventType "swiss"]
[EventCountry "POL"]
[SourceTitle "playchess.com"]
[Source "ChessBase"]
[SourceQuality "1"]
[TimeControl "40/5400+30:1800+30"]

1. e4 c6 2. d4 d5 3. Nd2 dxe4 4. Nxe4 Nd7 5. Nf3 Ngf6 6. Nxf6+ Nxf6 7. c3 Bg4 8. h3 Bh5 9. g4 Bg6 10. Ne5 Nd7 11. Nxg6 hxg6 12. d5 cxd5 13. Qxd5 Qc7 14. Bg2 Nc5 15. b4 Na4 16. Qb5+ Qd7 17. Qxd7+ Kxd7 18. Bf4 Kc8 19. Kd2 e6 20. Kc2 Be7 21. Kb3 Nb6 22. Rhd1 a5 23. a4 Nd5 24. Bxd5 exd5 25. Rxd5 axb4 26. Re1 Bf6 27. cxb4 Ra6 28. b5 Rxh3+ 29. Bg3 Re6 30. Rc1+ 1-0

[Event "XIX Najdorf Memorial 2019"]
[Site "Warsaw"]
[Date "2019.07.08"]
[Round "3.23"]
[White "Sanz Wawer, Daniel"]
[Black "Szustakowski, Antoni"]
[Result "1/2-1/2"]
[ECO "B51"]
[WhiteElo "2154"]
[BlackElo "2279"]
[Annotator "NA"]
[PlyCount "166"]
[EventDate "2019.07.06"]
[EventType "swiss"]
[EventCountry "POL"]
[SourceTitle "playchess.com"]
[Source "ChessBase"]
[SourceQuality "1"]
[TimeControl "40/5400+30:1800+30"]

1. e4 {[%emt 0:00:00]} c5 {[%emt 0:00:00]} 2. Nf3 {[%emt 0:00:00]} d6 {[%emt 0:00:00]} 3. Bb5+ {[%emt 0:00:14]} Nc6 {[%emt 0:00:00]} 4. O-O {[%emt 0:01:05]} Bd7 {[%emt 0:00:00]} 5. Re1 {[%emt 0:01:51]} Nf6 {[%emt 0:00:01]} 6. c3 {[%emt 0:05:11]} a6 {[%emt 0:00:26]} 7. Ba4 {[%emt 0:00:38]} b5 {[%emt 0:00:43]} 8. Bc2 {[%emt 0:00:16]} g6 {[%emt 0:04:50]} 9. d4 {[%emt 0:00:55]} cxd4 {[%emt 0:01:34]} 10. cxd4 {[%emt 0:00:09]} Bg4 {[%emt 0:00:04]} 11. d5 {[%emt 0:05:03]} Ne5 {[%emt 0:02:46]} 12. Nbd2 {[%emt 0:02:50]} Rc8 {[%emt 0:06:44]} 13. h3 {[%emt 0:09:33]} Nxf3+ {[%emt 0:01:20]} 14. Nxf3 {[%emt 0:00:08]} Bxf3 {[%emt 0:00:04]} 15. gxf3 {[%emt 0:00:08]} Bg7 {[%emt 0:00:04]} 16. a4 {[%emt 0:03:07]} Qd7 {[%emt 0:02:34]} 17. Kg2 {[%emt 0:03:28]} O-O {[%emt 0:00:43]} 18. axb5 {[%emt 0:04:03]} axb5 {[%emt 0:03:51]} 19. Bd3 {[%emt 0:00:18]} Nh5 {[%emt 0:00:16]} 20. Be3 {[%emt 0:03:44]} Bxb2 {[%emt 0:02:10]} 21. Rb1 {[%emt 0:00:45]} Be5 {[%emt 0:00:06]} 22. Bxb5 {[%emt 0:00:45]} Qd8 {[%emt 0:00:08]} 23. Ba6 {[%emt 0:15:45]} Rc7 {[%emt 0:12:07]} 24. Rc1 {[%emt 0:09:29]} Nf4+ {[%emt 0:14:17]} 25. Bxf4 {[%emt 0:00:05]} Bxf4 {[%emt 0:00:02]} 26. Rxc7 {[%emt 0:00:09]} Qxc7 {[%emt 0:00:04]} 27. Bf1 {[%emt 0:00:28]} Rc8 {[%emt 0:04:00]} 28. Qb3 {[%emt 0:01:36]} Qa7 {[%emt 0:05:40]} 29. Rb1 {[%emt 0:01:13]} Qd4 {[%emt 0:06:32]} 30. Kg1 {[%emt 0:07:30]} Rc3 {[%emt 0:02:37]} 31. Qb8+ {[%emt 0:03:23]} Kg7 {[%emt 0:00:05]} 32. Qb6 {[%emt 0:03:39]} Qf6 {[%emt 0:00:17]} 33. Bg2 {[%emt 0:00:32]} Be5 {[%emt 0:00:32]} 34. Rd1 {[%emt 0:00:33]} Qf4 {[%emt 0:06:08]} 35. Kf1 {[%emt 0:00:51]} Rxf3 {[%emt 0:05:09]} 36. Bxf3 {[%emt 0:01:04]} Qxf3 {[%emt 0:00:04]} 37. Qb1 {[%emt 0:02:08]} Qxh3+ {[%emt 0:00:04]} 38. Ke2 {[%emt 0:00:19]} Qg4+ {[%emt 0:00:02]} 39. Kf1 {[%emt 0:00:43]} h5 {[%emt 0:00:04]} 40. Qd3 {[%emt 0:00:00]} h4 {[%emt 0:00:00]} 41. f3 {[%emt 0:06:13]} Qh3+ {[%emt 0:01:10]} 42. Ke2 {[%emt 0:01:03]} Qg2+ {[%emt 0:00:42]} 43. Ke3 {[%emt 0:01:40]} h3 {[%emt 0:00:10]} 44. Qe2 {[%emt 0:00:38]} Qg5+ {[%emt 0:01:07]} 45. Kd3 {[%emt 0:00:32]} h2 {[%emt 0:00:05]} 46. Qf1 {[%emt 0:02:59]} Qg3 {[%emt 0:00:43]} 47. Ke2 {[%emt 0:01:07]} Bf4 {[%emt 0:01:46]} 48. Qf2 {[%emt 0:00:51]} Qh3 {[%emt 0:00:21]} 49. Rh1 {[%emt 0:01:55]} Bg3 {[%emt 0:00:49]} 50. Qf1 {[%emt 0:00:17]} Qh4 {[%emt 0:03:14]} 51. Qg2 {[%emt 0:03:27]} Bf4 {[%emt 0:01:25]} 52. Kf1 {[%emt 0:00:25]} g5 {[%emt 0:04:41]} 53. Ke2 {[%emt 0:02:28]} Kg6 {[%emt 0:02:10]} 54. Kf1 {[%emt 0:01:04]} Be5 {[%emt 0:02:30]} 55. Ke2 {[%emt 0:01:26]} f5 {[%emt 0:04:34]} 56. exf5+ {[%emt 0:03:04]} Kxf5 {[%emt 0:00:03]} 57. Rc1 {[%emt 0:00:26]} Bf4 {[%emt 0:03:41]} 58. Rd1 {[%emt 0:00:55]} Qg3 {[%emt 0:01:59]} 59. Qf1 {[%emt 0:03:39]} Be5 {[%emt 0:01:17]} 60. Kd3 {[%emt 0:01:20]} Kg6 {[%emt 0:02:04]} 61. Ke3 {[%emt 0:04:42]} Qf4+ {[%emt 0:01:31]} 62. Ke2 {[%emt 0:03:55]} Qc4+ {[%emt 0:00:10]} 63. Kf2 {[%emt 0:03:02]} Qxf1+ {[%emt 0:00:19]} 64. Rxf1 {[%emt 0:00:06]} Kf6 {[%emt 0:00:09]} 65. Re1 {[%emt 0:00:27]} Kf7 {[%emt 0:05:45]} 66. Kg2 {[%emt 0:00:21]} Ke8 {[%emt 0:00:21]} 67. Re2 {[%emt 0:00:53]} Kd7 {[%emt 0:01:18]} 68. Ra2 {[%emt 0:00:40]} Kc7 {[%emt 0:01:43]} 69. Rc2+ {[%emt 0:01:55]} Kd7 {[%emt 0:00:06]} 70. Ra2 {[%emt 0:00:20]} Ke8 {[%emt 0:00:02]} 71. Re2 {[%emt 0:01:01]} Kf8 {[%emt 0:00:15]} 72. Re4 {[%emt 0:00:38]} Kf7 {[%emt 0:00:06]} 73. Re1 {[%emt 0:00:23]} Kf6 {[%emt 0:00:05]} 74. Kh1 {[%emt 0:00:25]} Kf5 {[%emt 0:00:04]} 75. Kg2 {[%emt 0:00:18]} e6 {[%emt 0:00:29]} 76. dxe6 {[%emt 0:00:10]} Kxe6 {[%emt 0:00:04]} 77. f4 {[%emt 0:00:25]} gxf4 {[%emt 0:00:04]} 78. Kxh2 {[%emt 0:00:04]} f3+ {[%emt 0:00:46]} 79. Kg1 {[%emt 0:01:04]} Kf5 {[%emt 0:00:03]} 80. Kf2 {[%emt 0:00:58]} Kf4 {[%emt 0:00:03]} 81. Rd1 {[%emt 0:00:40]} Ke4 {[%emt 0:00:21]} 82. Re1+ {[%emt 0:00:15]} Kf4 {[%emt 0:00:03]} 83. Rd1 {[%emt 0:00:04]} Ke4 {[%emt 0:00:36]} 1/2-1/2

[Event "XIX Najdorf Memorial 2019"]
[Site "Warsaw"]
[Date "2019.07.08"]
[Round "3.24"]
[White "Piotrowski, Przemyslaw"]
[Black "Dwilewicz, Katarzyna"]
[Result "1-0"]
[ECO "A46"]
[WhiteElo "2273"]
[BlackElo "2050"]
[Annotator "NA"]
[PlyCount "87"]
[EventDate "2019.07.06"]
[EventType "swiss"]
[EventCountry "POL"]
[SourceTitle "playchess.com"]
[Source "ChessBase"]
[SourceQuality "1"]
[TimeControl "40/5400+30:1800+30"]

1. d4 {[%emt 0:02:59]} Nf6 {[%emt 0:00:00]} 2. Nf3 {[%emt 0:00:06]} e6 {[%emt 0:00:00]} 3. g3 {[%emt 0:00:07]} b6 {[%emt 0:00:00]} 4. Bg2 {[%emt 0:00:10]} Bb7 {[%emt 0:00:07]} 5. c4 {[%emt 0:00:05]} d5 {[%emt 0:00:55]} 6. O-O {[%emt 0:00:27]} Be7 {[%emt 0:00:07]} 7. Nc3 {[%emt 0:00:54]} O-O {[%emt 0:00:20]} 8. Bf4 {[%emt 0:01:04]} a6 {[%emt 0:02:48]} 9. cxd5 {[%emt 0:01:21]} exd5 {[%emt 0:02:05]} 10. Rc1 {[%emt 0:00:59]} Nbd7 {[%emt 0:01:26]} 11. Nh4 {[%emt 0:10:16]} Rc8 {[%emt 0:10:20]} 12. Nf5 {[%emt 0:02:23]} Re8 {[%emt 0:00:49]} 13. Qb3 {[%emt 0:01:44]} Nf8 {[%emt 0:12:15]} 14. Bg5 {[%emt 0:17:42]} Ne6 {[%emt 0:10:38]} 15. Nxe7+ {[%emt 0:10:58]} Qxe7 {[%emt 0:15:05]} 16. Bxf6 {[%emt 0:00:52]} Qxf6 {[%emt 0:00:06]} 17. e3 {[%emt 0:00:14]} Ng5 {[%emt 0:15:45]} 18. f4 {[%emt 0:03:25]} Ne4 {[%emt 0:01:01]} 19. Nxe4 {[%emt 0:00:59]} dxe4 {[%emt 0:00:07]} 20. Bh3 {[%emt 0:00:03]} Rcd8 {[%emt 0:02:22]} 21. Rxc7 {[%emt 0:00:06]} Bd5 {[%emt 0:00:07]} 22. Qa3 {[%emt 0:00:19]} a5 {[%emt 0:02:03]} 23. Rfc1 {[%emt 0:00:39]} h5 {[%emt 0:01:16]} 24. b3 {[%emt 0:05:51]} g5 {[%emt 0:06:19]} 25. Rf1 {[%emt 0:05:12]} g4 {[%emt 0:01:51]} 26. Bg2 {[%emt 0:00:04]} Kg7 {[%emt 0:06:00]} 27. Rfc1 {[%emt 0:02:04]} Rd6 {[%emt 0:01:15]} 28. Bf1 {[%emt 0:03:55]} Rh8 {[%emt 0:05:20]} 29. Rc8 {[%emt 0:00:40]} Rxc8 {[%emt 0:00:31]} 30. Rxc8 {[%emt 0:00:02]} Bc6 {[%emt 0:00:16]} 31. Bc4 {[%emt 0:00:45]} b5 {[%emt 0:01:22]} 32. Be2 {[%emt 0:00:36]} Qe6 {[%emt 0:00:44]} 33. Qc5 {[%emt 0:03:40]} Qxc8 {[%emt 0:00:20]} 34. Qxd6 {[%emt 0:00:04]} Bd7 {[%emt 0:02:00]} 35. Qe5+ {[%emt 0:00:15]} Kg8 {[%emt 0:00:22]} 36. Qg5+ {[%emt 0:04:00]} Kf8 {[%emt 0:00:07]} 37. Kf2 {[%emt 0:00:41]} a4 {[%emt 0:01:05]} 38. Qxh5 {[%emt 0:00:42]} Qc2 {[%emt 0:00:18]} 39. f5 {[%emt 0:02:33]} Ke7 {[%emt 0:00:55]} 40. Qxg4 {[%emt 0:00:00]} a3 {[%emt 0:00:00]} 41. f6+ {[%emt 0:04:34]} Kd6 {[%emt 0:02:17]} 42. Qh5 {[%emt 0:01:37]} Qxa2 {[%emt 0:12:59]} 43. Qc5+ {[%emt 0:00:07]} Ke6 {[%emt 0:00:03]} 44. Qe5# 1-0